[Event "48th Ciutat de Badalona Open 2024"]
[Site "Badalona"]
[Date "2024.08.05"]
[Round "4.8"]
[White "Gutierrez Espinosa, Karen"]
[Black "Escandell Mari, Juan Carlos"]
[Result "1-0"]
[ECO "B33"]
[WhiteElo "2054"]
[BlackElo "2204"]
[Annotator "TA"]
[PlyCount "69"]
[EventDate "2024.07.29"]
[EventCountry "ESP"]
[SourceTitle "playchess.com"]
[Source "ChessBase"]
[SourceQuality "1"]
[TimeControl "5400+30"]

{[%evp 24,69,16,0,0,6,10,0,26,-27,-29,-138,-146,-149,-157,-293,-287,-358,-282,-300,-307,-287,-286,-302,-308,-296,-283,-252,-93,-75,-35,-22,-31,-33,235,243,1204,69,1191,1141,1097,270,304,297,1514,1335,1951,1806]} 1. e4 {[%emt 0:00:08]} c5 {[%emt 0:00:09]} 2. Nf3 {[%emt 0:00:14]} Nc6 {[%emt 0:00:06]} 3. d4 {[%emt 0:00:14]} cxd4 {[%emt 0:00:08]} 4. Nxd4 {[%emt 0:00:04]} Qb6 {[%emt 0:00:10]} 5. Nb3 {[%emt 0:03:01]} Nf6 {[%emt 0:00:10]} 6. Nc3 {[%emt 0:00:30]} e6 {[%emt 0:00:09]} 7. Be3 {[%emt 0:00:37]} Qc7 {[%emt 0:01:14]} 8. a3 {[%emt 0:03:57]} a6 {[%emt 0:01:57]} 9. Be2 {[%emt 0:00:27]} d6 {[%emt 0:01:16]} 10. O-O {[%emt 0:00:08]} Be7 {[%emt 0:00:10]} 11. f4 {[%emt 0:01:07]} b5 {[%emt 0:01:00]} 12. Bf3 {[%emt 0:01:07]} Bb7 {[%emt 0:09:28]} 13. Qe1 {[%emt 0:07:05]} O-O {[%emt 0:01:52]} 14. Qg3 {[%emt 0:02:35]} Rfe8 {[%emt 0:12:03]} 15. Rad1 {[%emt 0:04:21]} Rac8 {[%emt 0:05:32] The position is equal.} 16. Nd4 {[%emt 0:06:43]} (16. h4 $142) 16... Na5 $11 {[%emt 0:13:58]} 17. f5 {[%emt 0:11:32] [#]} (17. Bd2 $11 {keeps the balance.}) 17... e5 $1 $17 {[%emt 0:04:57][%cal Be6e5,Be5e4][%mdl 32]} (17... Nc4 18. Bh6 Bf8 19. fxe6 fxe6 20. Bc1) 18. Nde2 {[%emt 0:01:57]} Nc4 {[%emt 0:08:32][%csl LRb2,LRe3]} 19. Bc1 {[%emt 0:00:40] [#]} (19. Bh6 $17 {was forced.} Bf8 (19... Nxb2 20. Qxg7#) 20. Bg5) 19... d5 $1 $19 {[%emt 0:02:49][%mdl 512]} 20. exd5 {[%emt 0:02:10]} (20. Rxd5 Bxd5) 20... Bc5+ {[%emt 0:03:43]} 21. Kh1 {[%emt 0:00:10][%cal Od5d6] [#]} e4 $1 {[%emt 0:01:39]} 22. Bf4 {[%emt 0:01:52]} Bd6 {[%emt 0:08:00]} 23. Bg4 {[%emt 0:05:28]} Bxf4 {[%emt 0:01:40]} 24. Rxf4 {[%emt 0:01:52]} Nxb2 {[%emt 0:00:47]} 25. Rd4 {[%emt 0:02:35][%cal Bd1d4,Bd4e4,Be4e8,Be8e5][%mdl 32]} Qe5 {[%emt 0:02:00]} (25... h5 $19 {has better winning chances.} 26. Bh3 (26. d6 $2 Qd7 $19) 26... Qe5) 26. Nxe4 $17 {[%emt 0:02:31]} Rxc2 {[%emt 0:09:48]} (26... Bxd5 $2 {loses.} 27. Nxf6+ Qxf6 28. Rxd5 $18) ({Much worse is} 26... Nxd5 27. f6 Rxc2 (27... Nxf4 $2 28. Bxc8 Ng6 29. Bxb7 $18) 28. Be6 (28. Bd7 g6 $16) 28... Nxf6 (28... fxe6 29. Qxg7#) (28... g6 29. Bxf7+ Kxf7 30. Qh3 $18) 29. Nxf6+ Kh8 30. Nxe8 $11) 27. Nxf6+ {[%emt 0:00:56]} Qxf6 {[%emt 0:00:09]} 28. Rfe4 {[%emt 0:02:22]} Rxe4 {[%emt 0:06:38][%mdl 8192]} (28... Rcc8 $15 {keeps the upper hand.} 29. h3 (29. Rxe8+ Rxe8 $11) 29... Rxe4 30. Rxe4 Bxd5) 29. Rxe4 $18 {[%emt 0:00:06][%cal Re4e8]} h5 $2 {[%emt 0:00:40]} (29... Kf8) 30. Re8+ $40 {[%emt 0:07:49][%mdl 128] White is up to no good.} Kh7 {[%emt 0:00:02]} 31. Bxh5 {[%emt 0:02:12][%cal Oh5g6]} Qxf5 {[%emt 0:02:24]} 32. Bf3 $2 {[%emt 0:00:55]} (32. Bxf7 {Qh4+ would kill now.} Rc1+ 33. Ng1) 32... Rc4 {[%emt 0:01:41][%cal Ob2d3] Inhibits Qh4+.} 33. Re5 {[%emt 0:02:37]} Qb1+ {[%emt 0:01:12]} (33... Qf6 34. Be4+ g6) 34. Ng1 {[%emt 0:00:01] Intending Qh3+ and mate.} Rc8 {[%emt 0:01:27]} 35. Be4+ {[%emt 0:00:13] Weighted Error Value: White=0.52/Black=0.37.  Loses game:     	---       	Black=2      Mistake:       	White=3     	Black=3      Inaccurate:     	---       	Black=2      OK:         	White=5     	Black=6      Best:        	White=5     	Black=1      Strong:       	---       	Black=2      Brilliant:      	---       	Black=1} 1-0

[Event "48th Ciutat de Badalona Open 2024"]
[Site "Badalona"]
[Date "2024.08.05"]
[Round "4.9"]
[White "Weingarten, Phineas"]
[Black "Ramos Alvarez, Maximo"]
[Result "1-0"]
[ECO "B45"]
[WhiteElo "1824"]
[BlackElo "1877"]
[Annotator "NA RC"]
[PlyCount "87"]
[EventDate "2024.07.29"]
[EventCountry "ESP"]
[SourceTitle "playchess.com"]
[Source "ChessBase"]
[SourceQuality "1"]
[TimeControl "5400+30"]

1. e4 {[%emt 0:00:03]} c5 {[%emt 0:00:12]} 2. Nf3 {[%emt 0:00:02]} e6 {[%emt 0:00:11]} 3. d4 {[%emt 0:00:04]} cxd4 {[%emt 0:00:08]} 4. Nxd4 {[%emt 0:00:02]} Nf6 {[%emt 0:00:19]} 5. Nc3 {[%emt 0:00:05]} Nc6 {[%emt 0:00:10]} 6. Nxc6 {[%emt 0:00:11]} bxc6 {[%emt 0:00:18]} 7. e5 {[%emt 0:00:05]} Nd5 {[%emt 0:00:16]} 8. Ne4 {[%emt 0:00:14]} Bb7 {[%emt 0:00:26]} 9. c4 {[%emt 0:05:38]} Nb4 {[%emt 0:00:35]} 10. c5 {[%emt 0:32:32]} Qh4 {[%emt 0:18:16]} 11. Qf3 {[%emt 0:21:01]} h6 {[%emt 0:22:26]} 12. g3 {[%emt 0:04:58]} Qd8 {[%emt 0:01:20]} 13. Qb3 {[%emt 0:04:26]} Qa5 {[%emt 0:03:21]} 14. Bd2 {[%emt 0:00:55]} Bxc5 {[%emt 0:00:29]} 15. Nxc5 {[%emt 0:00:26]} Qxc5 {[%emt 0:00:03]} 16. Qxb4 {[%emt 0:02:23]} Qxe5+ {[%emt 0:00:54]} 17. Be3 {[%emt 0:01:05]} Rb8 {[%emt 0:03:44]} 18. Qc3 {[%emt 0:05:00]} Qxc3+ {[%emt 0:09:35]} 19. bxc3 {[%emt 0:00:04]} c5 {[%emt 0:00:51]} 20. Rg1 {[%emt 0:02:22]} d6 {[%emt 0:03:38]} 21. Rb1 {[%emt 0:01:03]} Kd7 {[%emt 0:00:44]} 22. Bd3 {[%emt 0:03:02]} Bd5 {[%emt 0:03:26]} 23. Bb5+ {[%emt 0:04:26]} Kc7 {[%emt 0:00:43]} 24. Bd3 {[%emt 0:06:20]} Rxb1+ {[%emt 0:03:23]} 25. Bxb1 {[%emt 0:00:01]} Rb8 {[%emt 0:00:24]} 26. Kd2 {[%emt 0:01:45]} Bxa2 {[%emt 0:03:37]} 27. Bxa2 {[%emt 0:00:22]} Rb2+ {[%emt 0:00:32]} 28. Kd3 {[%emt 0:00:04]} Rxa2 {[%emt 0:00:42]} 29. Rb1 {[%emt 0:00:13]} Ra4 {[%emt 0:08:03]} 30. Rb2 {[%emt 0:01:05]} g5 {[%emt 0:01:27]} 31. f4 {[%emt 0:00:53]} f6 {[%emt 0:00:32]} 32. fxg5 {[%emt 0:01:20]} fxg5 {[%emt 0:01:53]} 33. Rf2 {[%emt 0:00:26]} Kc6 {[%emt 0:03:11]} 34. Rf6 {[%emt 0:00:30]} Kd5 {[%emt 0:00:08]} 35. Rxh6 {[%emt 0:01:16]} Ra2 {[%emt 0:00:32]} 36. c4+ {[%emt 0:00:52]} Ke5 {[%emt 0:00:54]} 37. Bxg5 {[%emt 0:00:12]} Kf5 {[%emt 0:01:22]} 38. Be7 {[%emt 0:00:15]} Ra1 {[%emt 0:00:35]} 39. Kc2 {[%emt 0:00:41]} Ra4 {[%emt 0:01:08]} 40. Kb3 {[%emt 0:00:06]} Rb4+ {[%emt 0:00:21]} 41. Kc3 {[%emt 0:00:07]} Rb6 {[%emt 0:00:31]} 42. Rf6+ {[%emt 0:00:16]} Ke5 {[%emt 0:00:46]} 43. Rf4 {[%emt 0:00:11]} Ra6 {[%emt 0:00:32]} 44. Bf6# {[%emt 0:00:30]} 1-0

[Event "48th Ciutat de Badalona Open 2024"]
[Site "Badalona"]
[Date "2024.08.05"]
[Round "4.10"]
[White "Comas Molne, Pau"]
[Black "Ritter Aguilar, Jordi"]
[Result "1-0"]
[ECO "D13"]
[WhiteElo "1860"]
[BlackElo "1807"]
[Annotator "NA RC"]
[PlyCount "113"]
[EventDate "2024.07.29"]
[EventCountry "ESP"]
[SourceTitle "playchess.com"]
[Source "ChessBase"]
[SourceQuality "1"]
[TimeControl "5400+30"]

1. d4 {[%emt 0:25:09]} Nf6 {[%emt 0:00:17]} 2. Nf3 {[%emt 0:00:49]} c5 {[%emt 0:01:41]} 3. c3 {[%emt 0:00:13]} cxd4 {[%emt 0:00:42]} 4. cxd4 {[%emt 0:00:18]} d5 {[%emt 0:01:04]} 5. Nc3 {[%emt 0:00:24]} Nc6 {[%emt 0:00:54]} 6. Bg5 {[%emt 0:00:44]} Ne4 {[%emt 0:03:28]} 7. Bf4 {[%emt 0:03:36]} e6 {[%emt 0:01:41]} 8. e3 {[%emt 0:02:02]} Bb4 {[%emt 0:01:00]} 9. Rc1 {[%emt 0:01:08]} Qa5 {[%emt 0:05:30]} 10. Qb3 {[%emt 0:02:37]} Bxc3+ {[%emt 0:02:41]} 11. bxc3 {[%emt 0:00:03]} O-O {[%emt 0:01:07]} 12. Bd3 {[%emt 0:00:19]} f5 {[%emt 0:02:29]} 13. O-O {[%emt 0:00:29]} a6 {[%emt 0:01:04]} 14. Bxe4 {[%emt 0:01:16]} fxe4 {[%emt 0:00:31]} 15. Ne5 {[%emt 0:00:19]} Nxe5 {[%emt 0:01:39]} 16. Bxe5 {[%emt 0:00:06]} b5 {[%emt 0:00:29]} 17. Rc2 {[%emt 0:02:59]} Bd7 {[%emt 0:00:25]} 18. f3 {[%emt 0:02:12]} Rac8 {[%emt 0:04:04]} 19. Bd6 {[%emt 0:06:57]} Rf6 {[%emt 0:04:38]} 20. fxe4 {[%emt 0:03:28]} Rxf1+ {[%emt 0:08:12]} 21. Kxf1 {[%emt 0:00:01]} dxe4 {[%emt 0:01:36]} 22. Rf2 {[%emt 0:05:44]} Qa4 {[%emt 0:06:57]} 23. Qxa4 {[%emt 0:02:16]} bxa4 {[%emt 0:00:08]} 24. c4 {[%emt 0:03:58]} h6 {[%emt 0:03:16]} 25. c5 {[%emt 0:01:01]} Bc6 {[%emt 0:02:28]} 26. Ke1 {[%emt 0:00:49]} Rd8 {[%emt 0:01:05]} 27. Kd2 {[%emt 0:03:42]} Rd7 {[%emt 0:01:28]} 28. Rf8+ {[%emt 0:00:40]} Kh7 {[%emt 0:00:10]} 29. Kc3 {[%emt 0:03:15]} Bd5 {[%emt 0:01:38]} 30. Kb2 {[%emt 0:05:17]} Bc6 {[%emt 0:03:40]} 31. Ka3 {[%emt 0:00:58]} a5 {[%emt 0:06:05]} 32. Rc8 {[%emt 0:01:34]} Bb7 {[%emt 0:02:56]} 33. Rc7 {[%emt 0:01:46]} Rxc7 {[%emt 0:00:56]} 34. Bxc7 {[%emt 0:00:01]} Bc6 {[%emt 0:00:10]} 35. Bxa5 {[%emt 0:00:09]} Kg6 {[%emt 0:00:40]} 36. Bc3 {[%emt 0:00:57]} Kf7 {[%emt 0:01:09]} 37. Kb4 {[%emt 0:00:01]} g6 {[%emt 0:01:07]} 38. Ka5 {[%emt 0:00:10]} Ke7 {[%emt 0:00:28]} 39. Kb6 {[%emt 0:00:40]} Kd7 {[%emt 0:00:19]} 40. Be1 {[%emt 0:01:01]} h5 {[%emt 0:04:25]} 41. Bh4 {[%emt 0:00:02]} a3 {[%emt 0:02:32]} 42. Be1 {[%emt 0:00:39]} Bd5 {[%emt 0:01:06]} 43. Bb4 {[%emt 0:00:51]} Bxa2 {[%emt 0:00:16]} 44. c6+ {[%emt 0:00:25]} Kc8 {[%emt 0:00:14]} 45. Bxa3 {[%emt 0:00:36]} g5 {[%emt 0:00:17]} 46. Be7 {[%emt 0:00:36]} g4 {[%emt 0:00:11]} 47. g3 {[%emt 0:00:59]} Bd5 {[%emt 0:00:24]} 48. Bg5 {[%emt 0:00:31]} Ba2 {[%emt 0:04:31]} 49. Kc5 {[%emt 0:00:10]} Bd5 {[%emt 0:00:37]} 50. Kd6 {[%emt 0:00:09]} Ba2 {[%emt 0:00:13]} 51. Bf4 {[%emt 0:00:38]} Kd8 {[%emt 0:05:53]} 52. c7+ {[%emt 0:00:08]} Kc8 {[%emt 0:00:14]} 53. Ke7 {[%emt 0:00:23]} Bc4 {[%emt 0:02:48]} 54. Kf6 {[%emt 0:00:09]} Kd7 {[%emt 0:04:20]} 55. Kg6 {[%emt 0:00:28]} Be2 {[%emt 0:03:06]} 56. Kxh5 {[%emt 0:00:02]} Bd1 {[%emt 0:01:16]} 57. Kh4 {[%emt 0:00:15]} 1-0

[Event "48th Ciutat de Badalona Open 2024"]
[Site "Badalona"]
[Date "2024.08.06"]
[Round "5.1"]
[White "Chavez Suarez, Carlos Alberto"]
[Black "Berdayes Ason, Dylan Isidro"]
[Result "1/2-1/2"]
[ECO "C00"]
[WhiteElo "2279"]
[BlackElo "2476"]
[Annotator "TA"]
[PlyCount "61"]
[EventDate "2024.07.29"]
[EventType "swiss"]
[EventCountry "ESP"]
[SourceTitle "playchess.com"]
[Source "ChessBase"]
[SourceQuality "1"]
[TimeControl "5400+30"]

{[%evp 9,61,-3,-11,-14,0,0,0,-18,-20,-5,-24,-49,0,0,0,0,0,0,0,0,10,9,15,10,51,47,78,65,50,54,69,71,77,73,78,70,74,33,23,0,0,0,0,0,0,0,0,0,0,0,0,0,0,0]} 1. e4 {[%emt 1:31:00]} c5 {[%emt 0:01:26]} 2. Nf3 {[%emt 0:00:00]} e6 {[%emt 0:00:13]} 3. Qe2 {[%emt 0:00:00]} Nc6 {[%emt 0:00:18]} 4. c3 {[%emt 0:00:00]} e5 {[%emt 0:00:11]} 5. g3 {[%emt 0:00:00]} g6 {[%emt 0:00:27]} 6. Bg2 {[%emt 0:00:00]} Bg7 {[%emt 0:00:02]} 7. O-O {[%emt 0:00:00]} d6 {[%emt 1:31:23]} 8. b3 {[%emt 0:03:30]} Nge7 {[%emt 0:00:00]} 9. Bb2 {[%emt 0:00:30][%cal Od2d4]} O-O {[%emt 0:00:00]} 10. h3 {[%emt 0:00:00]} h6 {[%emt 0:00:00]} (10... d5 $15 {should be considered.} 11. d3 d4) 11. d4 $11 {[%emt 0:00:00]} exd4 {[%emt 0:00:00]} 12. cxd4 {[%emt 0:00:00]} Nxd4 {[%emt 0:00:00]} 13. Nxd4 {[%emt 0:00:00]} cxd4 {[%emt 0:00:00]} 14. Qd2 {[%emt 0:00:00]} Nc6 {[%emt 0:00:00]} 15. Na3 {[%emt 0:00:00]} b6 {[%emt 0:00:00]} 16. Nc2 {[%emt 0:00:00][%cal Rc2d4]} Ba6 {[%emt 0:00:00]} 17. Rfd1 {[%emt 0:00:00]} d3 {[%emt 0:00:00]} 18. Bxg7 {[%emt 0:00:00]} Kxg7 {[%emt 0:00:00]} 19. Ne1 {[%emt 0:00:00]} Qf6 {[%emt 0:00:00] Prevents Qc3} 20. Nxd3 {[%emt 0:00:00]} Bxd3 {[%emt 0:00:00]} 21. Qxd3 {[%emt 0:00:00]} Rfd8 {[%emt 0:00:00]} 22. Rac1 {[%emt 0:00:00]} Ne5 {[%emt 0:00:00]} 23. Qd4 {[%emt 0:00:00] [#] aiming for f4.} g5 {[%emt 0:08:00]} 24. Rc7 {[%emt 0:00:00]} (24. Qc3 {with more complications.} h5 25. Rd5 Rdc8 26. Qxc8 Rxc8 27. Rxc8 h4 28. gxh4 gxh4 29. Rc7) 24... Rdc8 {[%emt 0:00:00] The position is equal.} 25. Rxc8 {[%emt 0:00:00]} (25. Qxd6 $2 {perishes.} Qxd6 26. Rxd6 Rxc7 $19) 25... Rxc8 {[%emt 0:00:00]} 26. Qxd6 {[%emt 0:00:00]} Qxd6 {[%emt 0:00:00]} 27. Rxd6 {[%emt 0:00:00] KRB-KRN} Rc1+ {[%emt 0:00:00]} 28. Bf1 {[%emt 0:00:00]} Rc2 {[%emt 0:00:00]} 29. a4 {[%emt 0:00:00]} Rb2 {[%emt 0:00:00]} 30. Rd5 {[%emt 0:00:00]} Nf3+ {[%emt 0:00:00]} 31. Kg2 {[%emt 0:00:00] Weighted Error Value: White=0.06 (flawless) /Black=0.08 (flawless) .  Mistake:       	---       	Black=1      Inaccurate:     	White=1     	Black=2      OK:         	White=9     	Black=9      Best:        	White=3     	Black=1} 1/2-1/2

[Event "48th Ciutat de Badalona Open 2024"]
[Site "Badalona"]
[Date "2024.08.06"]
[Round "5.2"]
[White "Vitier Vazquez, Cristian"]
[Black "Blasco Coll, Andreu"]
[Result "1-0"]
[ECO "E62"]
[WhiteElo "2357"]
[BlackElo "2260"]
[Annotator "RC"]
[PlyCount "69"]
[EventDate "2024.07.29"]
[EventType "swiss"]
[EventCountry "ESP"]
[SourceTitle "playchess.com"]
[Source "ChessBase"]
[SourceQuality "1"]
[TimeControl "5400+30"]

1. Nf3 {[%emt 0:00:56]} Nf6 {[%emt 0:00:21]} 2. c4 {[%emt 0:00:26]} g6 {[%emt 0:00:23]} 3. d4 {[%emt 0:00:53]} Bg7 {[%emt 0:00:25]} 4. g3 {[%emt 0:00:07]} O-O {[%emt 0:00:24]} 5. Bg2 {[%emt 0:00:08]} d6 {[%emt 0:00:20]} 6. Nc3 {[%emt 0:00:10]} Nc6 {[%emt 0:00:33]} 7. d5 {[%emt 0:02:22]} Na5 {[%emt 0:00:14]} 8. b3 {[%emt 0:01:16]} Nxd5 {[%emt 0:03:47]} 9. Nxd5 {[%emt 0:00:08]} Bxa1 {[%emt 0:00:06]} 10. Bd2 {[%emt 0:00:09]} c6 {[%emt 0:01:59]} 11. Nxe7+ {[%emt 0:00:12]} Qxe7 {[%emt 0:00:06]} 12. Qxa1 {[%emt 0:00:04]} Re8 {[%emt 0:04:19]} 13. O-O {[%emt 0:01:11]} b6 {[%emt 0:03:23]} 14. Ng5 {[%emt 0:04:59]} Bf5 {[%emt 0:09:46]} 15. g4 {[%emt 0:36:19]} h6 {[%emt 0:07:26]} 16. gxf5 {[%emt 0:08:29]} hxg5 {[%emt 0:00:12]} 17. fxg6 {[%emt 0:00:11]} fxg6 {[%emt 0:06:06]} 18. Qd4 {[%emt 0:19:13]} Rac8 {[%emt 0:29:59]} 19. Bc3 {[%emt 0:03:27]} Qe5 {[%emt 0:06:29]} 20. Qd3 {[%emt 0:04:21]} Qf5 {[%emt 0:01:24]} 21. e4 {[%emt 0:07:23]} Qf7 {[%emt 0:10:10]} 22. Qd4 {[%emt 0:02:57]} Kh7 {[%emt 0:00:48]} 23. f4 {[%emt 0:00:41]} g4 {[%emt 0:07:32]} 24. f5 {[%emt 0:01:07]} g5 {[%emt 0:03:17]} 25. Qxd6 {[%emt 0:00:42]} c5 {[%emt 0:02:05]} 26. e5 {[%emt 0:03:59]} Rcd8 {[%emt 0:01:16]} 27. Bd5 {[%emt 0:00:22]} Qg7 {[%emt 0:00:39]} 28. f6 {[%emt 0:01:39]} Rxd6 {[%emt 0:00:28]} 29. fxg7 {[%emt 0:00:29]} Rdd8 {[%emt 0:00:30]} 30. e6 {[%emt 0:00:26]} Re7 {[%emt 0:00:31]} 31. Bf6 {[%emt 0:00:40]} Rde8 {[%emt 0:00:22]} 32. Bxe7 {[%emt 0:00:27]} Rxe7 {[%emt 0:00:06]} 33. Rf7 {[%emt 0:00:29]} Rxf7 {[%emt 0:00:57]} 34. exf7 {[%emt 0:00:11]} Kxg7 {[%emt 0:00:07]} 35. Kg2 {[%emt 0:00:08]} 1-0

[Event "48th Ciutat de Badalona Open 2024"]
[Site "Badalona"]
[Date "2024.08.06"]
[Round "5.3"]
[White "Vivaan Vishal Shah"]
[Black "Utsab Chatterjee"]
[Result "1/2-1/2"]
[ECO "C89"]
[WhiteElo "2186"]
[BlackElo "2289"]
[Annotator "NA RC"]
[PlyCount "118"]
[EventDate "2024.07.29"]
[EventType "swiss"]
[EventCountry "ESP"]
[SourceTitle "playchess.com"]
[Source "ChessBase"]
[SourceQuality "1"]
[TimeControl "5400+30"]

1. e4 {[%emt 1:31:00]} e5 {[%emt 0:04:43]} 2. Nf3 {[%emt 0:00:00]} Nc6 {[%emt 0:00:07]} 3. Bb5 {[%emt 0:00:00]} a6 {[%emt 0:00:17]} 4. Ba4 {[%emt 0:00:00]} Nf6 {[%emt 1:27:23]} 5. O-O {[%emt 0:00:00]} Be7 {[%emt 0:00:00]} 6. Re1 {[%emt 0:00:00]} b5 {[%emt 0:00:00]} 7. Bb3 {[%emt 0:00:00]} O-O {[%emt 0:00:00]} 8. c3 {[%emt 0:03:30]} d5 {[%emt 0:00:00]} 9. d4 {[%emt 0:00:30]} dxe4 {[%emt 0:00:00]} 10. Nxe5 {[%emt 0:00:30]} Nxe5 {[%emt 0:00:00]} 11. dxe5 {[%emt 0:00:30]} Ng4 {[%emt 0:03:30]} 12. Qd4 {[%emt 0:00:00]} Bf5 13. h3 {[%emt 0:01:00]} Nh6 {[%emt 0:01:00]} 14. Bxh6 {[%emt 0:00:00]} gxh6 {[%emt 0:00:30]} 15. Nd2 {[%emt 0:00:00]} c5 {[%emt 0:00:30]} 16. Qxd8 {[%emt 0:00:00]} Raxd8 {[%emt 0:00:00]} 17. Nxe4 {[%emt 0:02:00]} Bxe4 {[%emt 0:01:00]} 18. Rxe4 {[%emt 0:00:00]} Rd2 {[%emt 0:00:30]} 19. Rg4+ {[%emt 0:00:00]} Kh8 {[%emt 0:00:00]} 20. Rd1 {[%emt 0:00:00]} Rxd1+ {[%emt 0:00:00]} 21. Bxd1 {[%emt 0:00:00]} Rd8 {[%emt 0:00:00]} 22. Bf3 {[%emt 0:00:00]} Rd2 {[%emt 0:02:00]} 23. b3 {[%emt 0:03:00]} f6 {[%emt 0:00:00]} 24. c4 {[%emt 0:00:00]} h5 {[%emt 0:01:00]} 25. Rh4 {[%emt 0:00:00]} fxe5 {[%emt 0:00:00]} 26. Rxh5 {[%emt 0:00:00]} Bf8 {[%emt 0:00:00]} 27. Rxe5 {[%emt 0:00:00]} Rxa2 {[%emt 0:00:00]} 28. Re8 {[%emt 0:00:00]} Kg7 {[%emt 0:00:00]} 29. g3 {[%emt 0:00:00]} Ra3 {[%emt 0:00:00]} 30. cxb5 {[%emt 0:00:00]} axb5 {[%emt 0:00:00]} 31. Bd5 {[%emt 0:00:00]} Ra1+ {[%emt 0:00:00]} 32. Kg2 {[%emt 0:00:00]} Rd1 {[%emt 0:00:00]} 33. Re5 {[%emt 0:00:00]} Rd2 {[%emt 0:00:00]} 34. Rf5 {[%emt 0:00:00]} Bd6 {[%emt 0:00:00]} 35. Rg5+ {[%emt 0:00:00]} Kf6 {[%emt 0:00:00]} 36. Rh5 {[%emt 0:00:00]} Be5 {[%emt 0:00:00]} 37. Be4 {[%emt 0:00:00]} Bd4 {[%emt 0:00:00]} 38. Rf5+ {[%emt 0:00:00]} Kg7 {[%emt 0:00:00]} 39. Bd5 {[%emt 0:00:00]} Bxf2 {[%emt 0:00:00]} 40. Kf3 {[%emt 0:00:00]} Bd4 {[%emt 0:00:00]} 41. Rf7+ {[%emt 0:00:00]} Kh6 {[%emt 0:00:00]} 42. Rb7 {[%emt 0:00:00]} Kg5 {[%emt 0:00:00]} 43. h4+ {[%emt 0:00:00]} Kf6 {[%emt 0:00:00]} 44. Rxh7 {[%emt 0:00:00]} Rd3+ {[%emt 0:00:00]} 45. Kg4 {[%emt 0:00:00]} Ke5 {[%emt 0:00:00]} 46. Rh5+ {[%emt 0:00:00]} Kd6 {[%emt 0:00:00]} 47. Kf4 {[%emt 0:00:44]} Bf2 {[%emt 0:00:00]} 48. Bf3 {[%emt 0:01:27]} Rd4+ {[%emt 0:00:00]} 49. Kf5 {[%emt 0:00:26]} Bxg3 {[%emt 0:00:00]} 50. Rh6+ {[%emt 0:00:14]} Kc7 {[%emt 0:00:00]} 51. Be4 {[%emt 0:00:22]} Rd6 {[%emt 0:00:00]} 52. Rh7+ {[%emt 0:00:27]} Rd7 {[%emt 0:00:00]} 53. Rh6 {[%emt 0:00:57]} Rd6 {[%emt 0:00:00]} 54. Rh8 {[%emt 0:00:36]} Rd8 {[%emt 0:00:00]} 55. Rxd8 Kxd8 {[%emt 0:00:00]} 56. h5 {[%emt 0:00:25]} Ke7 {[%emt 0:00:00]} 57. h6 {[%emt 0:00:12]} Kf8 {[%emt 0:00:00]} 58. Bd5 {[%emt 0:00:07]} Bf2 {[%emt 0:00:00]} 59. Bc6 {[%emt 0:00:06]} c4 {[%emt 0:00:00]} 1/2-1/2

[Event "48th Ciutat de Badalona Open 2024"]
[Site "Badalona"]
[Date "2024.08.06"]
[Round "5.4"]
[White "Nagare Kaivalya Sandip"]
[Black "Gutierrez Espinosa, Karen"]
[Result "1-0"]
[ECO "B07"]
[WhiteElo "2273"]
[BlackElo "2054"]
[Annotator "NA RC"]
[PlyCount "87"]
[EventDate "2024.07.29"]
[EventType "swiss"]
[EventCountry "ESP"]
[SourceTitle "playchess.com"]
[Source "ChessBase"]
[SourceQuality "1"]
[TimeControl "5400+30"]

1. e4 {[%emt 0:02:09]} d6 {[%emt 0:00:24]} 2. d4 {[%emt 0:00:08]} Nf6 {[%emt 0:00:15]} 3. Nc3 {[%emt 0:00:04]} c6 {[%emt 0:00:09]} 4. Nf3 {[%emt 0:02:08]} Qa5 {[%emt 0:00:11]} 5. Bd3 {[%emt 0:00:10]} e5 {[%emt 0:00:15]} 6. h3 {[%emt 0:05:30]} Be7 {[%emt 0:02:13]} 7. O-O {[%emt 0:00:14]} Nbd7 {[%emt 0:00:20]} 8. Ne2 {[%emt 0:01:30]} O-O {[%emt 0:04:03]} 9. Ng3 {[%emt 0:00:10]} g6 {[%emt 0:02:08]} 10. c3 {[%emt 0:01:38]} Kg7 {[%emt 0:10:47]} 11. Qd2 {[%emt 0:07:09]} Ng8 {[%emt 0:05:25]} 12. b4 {[%emt 0:00:12]} Qd8 {[%emt 0:00:31]} 13. Bb2 {[%emt 0:00:25]} Bf6 {[%emt 0:14:49]} 14. Rad1 {[%emt 0:04:45]} h6 {[%emt 0:03:50]} 15. c4 {[%emt 0:00:55]} Qe7 {[%emt 0:01:25]} 16. Rfe1 {[%emt 0:04:34]} b6 {[%emt 0:02:02]} 17. Bf1 {[%emt 0:04:46]} c5 {[%emt 0:07:45]} 18. bxc5 {[%emt 0:02:55]} bxc5 {[%emt 0:02:04]} 19. dxe5 {[%emt 0:00:18]} dxe5 {[%emt 0:00:34]} 20. Ne2 {[%emt 0:00:20]} Nb6 {[%emt 0:07:16]} 21. Nc3 {[%emt 0:00:17]} Bb7 {[%emt 0:00:56]} 22. Nd5 {[%emt 0:00:24]} Bxd5 {[%emt 0:03:37]} 23. exd5 {[%emt 0:01:26]} e4 {[%emt 0:00:11]} 24. Ba3 {[%emt 0:04:29]} Na4 {[%emt 0:06:46]} 25. Qc2 {[%emt 0:04:41]} Qd7 {[%emt 0:09:28]} 26. Nd2 {[%emt 0:00:50]} Bd4 {[%emt 0:04:32]} 27. Nb3 {[%emt 0:01:22]} Bf6 {[%emt 0:03:01]} 28. Nxc5 {[%emt 0:00:42]} Nxc5 {[%emt 0:00:18]} 29. Bxc5 {[%emt 0:00:09]} Rfc8 {[%emt 0:01:08]} 30. Ba3 {[%emt 0:00:39]} Rab8 {[%emt 0:00:32]} 31. c5 {[%emt 0:00:15]} Ne7 {[%emt 0:00:32]} 32. Qxe4 {[%emt 0:00:32]} Nf5 {[%emt 0:00:15]} 33. c6 {[%emt 0:01:00]} Qc7 {[%emt 0:00:41]} 34. Qa4 {[%emt 0:06:18]} Rd8 {[%emt 0:01:14]} 35. Bc5 {[%emt 0:00:26]} a5 {[%emt 0:01:33]} 36. Qe4 {[%emt 0:04:30]} Rb2 {[%emt 0:01:35]} 37. d6 {[%emt 0:01:54]} Nxd6 {[%emt 0:00:28]} 38. Qf4 {[%emt 0:00:04]} Nb5 {[%emt 0:00:07]} 39. Qxc7 {[%emt 0:00:14]} Nxc7 {[%emt 0:00:02]} 40. Rxd8 {[%emt 0:00:04]} Bxd8 {[%emt 0:00:19]} 41. Bd4+ {[%emt 0:00:04]} Bf6 {[%emt 0:00:12]} 42. Bxb2 {[%emt 0:00:03]} Bxb2 {[%emt 0:00:07]} 43. Re7 {[%emt 0:00:02]} Nd5 {[%emt 0:00:35]} 44. Rd7 {[%emt 0:00:25]} 1-0